[Event "Titled Tuesday Blitz December 27 Late 2022"]
[White "Kleinman, Michael"]
[Black "Popilski, Gil"]
[WhiteFideId "2609479"]
[BlackFideId "2809060"]
[WhiteElo "2387"]
[BlackElo "2443"]
[Result "0-1"]
[Round "04"]
[TimeControl "180+2"]
[Date "2022.12.27"]
[WhiteClock "0:00:01"]
[BlackClock "0:00:10"]

1. e4 {[%clk 0:03:00]}  e5 {[%clk 0:02:37]} 2. Nf3 {[%clk 0:03:01]}  Nf6 {[%clk 0:02:36]} 3. Nxe5 {[%clk 0:03:00]}  d6 {[%clk 0:02:36]} 4. Nf3 {[%clk 0:03:00]}  Nxe4 {[%clk 0:02:36]} 5. d4 {[%clk 0:03:00]}  d5 {[%clk 0:02:36]} 6. Bd3 {[%clk 0:03:00]}  Bd6 {[%clk 0:02:32]} 7. O-O {[%clk 0:02:58]}  O-O {[%clk 0:02:31]} 8. Re1 {[%clk 0:02:58]}  Bf5 {[%clk 0:02:29]} 9. c4 {[%clk 0:02:47]}  c6 {[%clk 0:02:28]} 10. Nc3 {[%clk 0:02:44]}  Nxc3 {[%clk 0:02:25]} 11. bxc3 {[%clk 0:02:45]}  Bxd3 {[%clk 0:02:24]} 12. Qxd3 {[%clk 0:02:45]}  dxc4 {[%clk 0:02:24]} 13. Qxc4 {[%clk 0:02:44]}  Nd7 {[%clk 0:02:25]} 14. a4 {[%clk 0:02:30]}  Qa5 {[%clk 0:02:21]} 15. Bd2 {[%clk 0:02:26]}  Rae8 {[%clk 0:02:10]} 16. Qb3 {[%clk 0:02:24]}  Qb6 {[%clk 0:01:46]} 17. Qc4 {[%clk 0:02:04]}  Qc7 {[%clk 0:01:25]} 18. h3 {[%clk 0:01:56]}  h6 {[%clk 0:01:24]} 19. a5 {[%clk 0:01:48]}  Rxe1+ {[%clk 0:01:20]} 20. Nxe1 {[%clk 0:01:47]}  Re8 {[%clk 0:01:15]} 21. Nf3 {[%clk 0:01:40]}  c5 {[%clk 0:01:14]} 22. Be3 {[%clk 0:01:28]}  Rc8 {[%clk 0:00:58]} 23. Qd5 {[%clk 0:01:21]}  Nf6 {[%clk 0:00:56]} 24. Qf5 {[%clk 0:01:21]}  Qc6 {[%clk 0:00:44]} 25. Rb1 {[%clk 0:00:55]}  Nd5 {[%clk 0:00:33]} 26. Bd2 {[%clk 0:00:39]}  b5 {[%clk 0:00:31]} 27. axb6 {[%clk 0:00:36]}  Nxb6 {[%clk 0:00:27]} 28. dxc5 {[%clk 0:00:20]}  Bxc5 {[%clk 0:00:13]} 29. Ne5 {[%clk 0:00:18]}  Qd5 {[%clk 0:00:13]} 30. Be3 {[%clk 0:00:09]}  Bxe3 {[%clk 0:00:11]} 31. fxe3 {[%clk 0:00:09]}  Re8 {[%clk 0:00:12]} 32. e4 {[%clk 0:00:02]}  Qxe5 {[%clk 0:00:11]} 33. Qf3 {[%clk 0:00:01]}  Nc4 {[%clk 0:00:10]} 0-1


[Site "https://www.chess.com"]

[Event "Titled Tuesday Blitz December 27 Late 2022"]
[White "Korchmar, Vasiliy"]
[Black "Gascon Del Nogal, Jose Rafael"]
[WhiteFideId "24131750"]
[BlackFideId "3902463"]
[WhiteElo "2438"]
[BlackElo "2459"]
[Result "1-0"]
[Round "04"]
[TimeControl "180+2"]
[Date "2022.12.27"]
[WhiteClock "0:00:47"]
[BlackClock "0:00:04"]

1. e4 {[%clk 0:03:00]}  c5 {[%clk 0:02:58]} 2. Nf3 {[%clk 0:03:00]}  d6 {[%clk 0:02:55]} 3. d4 {[%clk 0:03:00]}  cxd4 {[%clk 0:02:55]} 4. Nxd4 {[%clk 0:03:01]}  Nf6 {[%clk 0:02:55]} 5. Nc3 {[%clk 0:03:01]}  Nc6 {[%clk 0:02:55]} 6. Be2 {[%clk 0:02:57]}  e5 {[%clk 0:02:51]} 7. Nf3 {[%clk 0:02:55]}  h6 {[%clk 0:02:48]} 8. O-O {[%clk 0:02:55]}  Be7 {[%clk 0:02:40]} 9. h3 {[%clk 0:02:54]}  O-O {[%clk 0:02:40]} 10. Re1 {[%clk 0:02:54]}  Be6 {[%clk 0:02:14]} 11. Bf1 {[%clk 0:02:54]}  Rc8 {[%clk 0:02:01]} 12. Nd5 {[%clk 0:02:54]}  Bxd5 {[%clk 0:01:45]} 13. exd5 {[%clk 0:02:55]}  Nb8 {[%clk 0:01:45]} 14. Be3 {[%clk 0:02:43]}  Nbd7 {[%clk 0:01:26]} 15. c4 {[%clk 0:02:43]}  Ne8 {[%clk 0:01:09]} 16. g4 {[%clk 0:02:41]}  e4 {[%clk 0:01:02]} 17. Nd2 {[%clk 0:02:29]}  f5 {[%clk 0:01:00]} 18. gxf5 {[%clk 0:02:26]}  Rxf5 {[%clk 0:00:52]} 19. Nxe4 {[%clk 0:02:26]}  Ne5 {[%clk 0:00:51]} 20. Be2 {[%clk 0:01:43]}  Bh4 {[%clk 0:00:42]} 21. c5 {[%clk 0:01:26]}  dxc5 {[%clk 0:00:37]} 22. d6 {[%clk 0:01:27]}  Nf6 {[%clk 0:00:33]} 23. Ng3 {[%clk 0:01:20]}  Bxg3 {[%clk 0:00:23]} 24. fxg3 {[%clk 0:01:21]}  Ned7 {[%clk 0:00:23]} 25. Qb3+ {[%clk 0:01:06]}  Kh8 {[%clk 0:00:18]} 26. Qxb7 {[%clk 0:01:07]}  Re5 {[%clk 0:00:17]} 27. Bf4 {[%clk 0:01:04]}  Rb8 {[%clk 0:00:12]} 28. Qc7 {[%clk 0:01:03]}  Re4 {[%clk 0:00:07]} 29. Qxd8+ {[%clk 0:00:55]}  Rxd8 {[%clk 0:00:08]} 30. Bf3 {[%clk 0:00:56]}  Rxe1+ {[%clk 0:00:08]} 31. Rxe1 {[%clk 0:00:57]}  g5 {[%clk 0:00:09]} 32. Bd2 {[%clk 0:00:55]}  Ne8 {[%clk 0:00:04]} 33. Bc3+ {[%clk 0:00:53]}  Kg8 {[%clk 0:00:03]} 34. Bd5+ {[%clk 0:00:49]}  Kf8 {[%clk 0:00:04]} 35. Rf1+ {[%clk 0:00:47]} 1-0


[Site "https://www.chess.com"]

[Event "Titled Tuesday Blitz December 27 Late 2022"]
[White "Kovacevic, Radmila"]
[Black "Vargas, Mauricio"]
[WhiteFideId "933171"]
[BlackFideId "4404572"]
[WhiteElo "2106"]
[BlackElo "2035"]
[Result "1-0"]
[Round "04"]
[TimeControl "180+2"]
[Date "2022.12.27"]
[WhiteClock "0:00:13"]
[BlackClock "0:00:02"]

1. e4 {[%clk 0:02:56]}  c6 {[%clk 0:02:57]} 2. d4 {[%clk 0:02:56]}  d5 {[%clk 0:02:58]} 3. exd5 {[%clk 0:02:55]}  cxd5 {[%clk 0:02:59]} 4. c4 {[%clk 0:02:56]}  Nc6 {[%clk 0:02:59]} 5. Nc3 {[%clk 0:02:55]}  Nf6 {[%clk 0:02:59]} 6. Bg5 {[%clk 0:02:53]}  Bf5 {[%clk 0:02:59]} 7. Bxf6 {[%clk 0:02:52]}  gxf6 {[%clk 0:02:59]} 8. cxd5 {[%clk 0:02:53]}  Nb8 {[%clk 0:02:57]} 9. g4 {[%clk 0:02:51]}  Bd7 {[%clk 0:02:54]} 10. Bc4 {[%clk 0:02:43]}  Bh6 {[%clk 0:02:51]} 11. h3 {[%clk 0:02:35]}  O-O {[%clk 0:02:47]} 12. Bd3 {[%clk 0:02:29]}  Kh8 {[%clk 0:02:42]} 13. Qe2 {[%clk 0:02:23]}  Rg8 {[%clk 0:02:40]} 14. Qe4 {[%clk 0:02:20]}  Rg7 {[%clk 0:02:39]} 15. f4 {[%clk 0:02:16]}  Qc7 {[%clk 0:02:33]} 16. Nge2 {[%clk 0:02:07]}  Na6 {[%clk 0:02:32]} 17. a3 {[%clk 0:02:02]}  Re8 {[%clk 0:02:31]} 18. Rc1 {[%clk 0:01:48]}  Qb6 {[%clk 0:02:19]} 19. b4 {[%clk 0:01:46]}  f5 {[%clk 0:01:58]} 20. gxf5 {[%clk 0:01:31]}  f6 {[%clk 0:01:55]} 21. Kd2 {[%clk 0:01:21]}  Qd6 {[%clk 0:01:50]} 22. Rhg1 {[%clk 0:01:20]}  Reg8 {[%clk 0:01:44]} 23. Rxg7 {[%clk 0:01:15]}  Rxg7 {[%clk 0:01:42]} 24. Nb5 {[%clk 0:01:14]}  Qb6 {[%clk 0:01:36]} 25. Nbc3 {[%clk 0:01:03]}  Be8 {[%clk 0:01:21]} 26. Ke3 {[%clk 0:00:56]}  Bf7 {[%clk 0:01:14]} 27. Qxe7 {[%clk 0:00:54]}  Bg8 {[%clk 0:00:50]} 28. Qe4 {[%clk 0:00:45]}  Qd6 {[%clk 0:00:44]} 29. Nb5 {[%clk 0:00:33]}  Qd7 {[%clk 0:00:43]} 30. d6 {[%clk 0:00:30]}  Nb8 {[%clk 0:00:37]} 31. d5 {[%clk 0:00:28]}  a6 {[%clk 0:00:37]} 32. Nc7 {[%clk 0:00:22]}  Qxd6 {[%clk 0:00:35]} 33. Ne6 {[%clk 0:00:22]}  Nd7 {[%clk 0:00:30]} 34. Nxg7 {[%clk 0:00:20]}  Bxg7 {[%clk 0:00:28]} 35. Rc8 {[%clk 0:00:20]}  Bh6 {[%clk 0:00:24]} 36. Rxg8+ {[%clk 0:00:20]}  Kxg8 {[%clk 0:00:24]} 37. Qe6+ {[%clk 0:00:20]}  Qxe6+ {[%clk 0:00:13]} 38. fxe6 {[%clk 0:00:21]}  Ne5 {[%clk 0:00:12]} 39. Bxh7+ {[%clk 0:00:16]}  Kxh7 {[%clk 0:00:11]} 40. e7 {[%clk 0:00:17]}  Nc4+ {[%clk 0:00:09]} 41. Ke4 {[%clk 0:00:15]}  Nd6+ {[%clk 0:00:08]} 42. Kd4 {[%clk 0:00:16]}  b6 {[%clk 0:00:06]} 43. Ng3 {[%clk 0:00:14]}  Kg8 {[%clk 0:00:05]} 44. Ke3 {[%clk 0:00:13]}  Kf7 {[%clk 0:00:04]} 45. Ne4 {[%clk 0:00:13]}  Nf5+ {[%clk 0:00:02]} 46. Kf3 {[%clk 0:00:13]}  Kxe7 {[%clk 0:00:02]} 47. Kg4 {[%clk 0:00:13]} 1-0


[Site "https://www.chess.com"]

[Event "Titled Tuesday Blitz December 27 Late 2022"]
[White "Li, Hui"]
[Black "Kretchetov, Alexandre"]
[WhiteFideId "15400310"]
[BlackFideId "4124588"]
[WhiteElo "1963"]
[BlackElo "2195"]
[Result "0-1"]
[Round "04"]
[TimeControl "180+2"]
[Date "2022.12.27"]
[WhiteClock "0:00:52"]
[BlackClock "0:01:41"]

1. e4 {[%clk 0:03:00]}  e5 {[%clk 0:02:59]} 2. Nf3 {[%clk 0:02:55]}  Nc6 {[%clk 0:02:59]} 3. Bb5 {[%clk 0:02:47]}  g6 {[%clk 0:02:59]} 4. d4 {[%clk 0:02:44]}  exd4 {[%clk 0:02:59]} 5. Bg5 {[%clk 0:02:44]}  Be7 {[%clk 0:02:59]} 6. Bxe7 {[%clk 0:02:44]}  Qxe7 {[%clk 0:02:59]} 7. Bxc6 {[%clk 0:02:44]}  dxc6 {[%clk 0:02:58]} 8. Qxd4 {[%clk 0:02:42]}  Nf6 {[%clk 0:02:58]} 9. Nc3 {[%clk 0:02:37]}  Bg4 {[%clk 0:02:56]} 10. Ne5 {[%clk 0:02:30]}  Rd8 {[%clk 0:02:32]} 11. Qa4 {[%clk 0:01:59]}  Qxe5 {[%clk 0:02:30]} 12. f3 {[%clk 0:01:51]}  Bc8 {[%clk 0:02:26]} 13. Qxa7 {[%clk 0:01:48]}  Qd4 {[%clk 0:02:23]} 14. Qxd4 {[%clk 0:01:39]}  Rxd4 {[%clk 0:02:23]} 15. Ke2 {[%clk 0:01:39]}  Ke7 {[%clk 0:02:19]} 16. Rad1 {[%clk 0:01:37]}  Rxd1 {[%clk 0:02:17]} 17. Rxd1 {[%clk 0:01:37]}  Rd8 {[%clk 0:02:16]} 18. Rh1 {[%clk 0:01:35]}  Be6 {[%clk 0:02:14]} 19. a3 {[%clk 0:01:35]}  Nd7 {[%clk 0:02:11]} 20. Ke3 {[%clk 0:01:32]}  f5 {[%clk 0:02:11]} 21. h4 {[%clk 0:01:29]}  fxe4 {[%clk 0:02:11]} 22. Nxe4 {[%clk 0:01:29]}  Nf6 {[%clk 0:02:11]} 23. Ng5 {[%clk 0:01:27]}  h6 {[%clk 0:02:10]} 24. Nxe6 {[%clk 0:01:24]}  Kxe6 {[%clk 0:02:10]} 25. Re1 {[%clk 0:01:19]}  Kf7 {[%clk 0:02:08]} 26. Ra1 {[%clk 0:01:10]}  Nd5+ {[%clk 0:02:06]} 27. Kf2 {[%clk 0:01:08]}  Nf4 {[%clk 0:02:04]} 28. g3 {[%clk 0:01:06]}  Ne6 {[%clk 0:01:59]} 29. Ke3 {[%clk 0:01:00]}  Nd4 {[%clk 0:01:59]} 30. Rc1 {[%clk 0:00:59]}  Nf5+ {[%clk 0:01:57]} 31. Kf2 {[%clk 0:00:56]}  Rd2+ {[%clk 0:01:57]} 32. Ke1 {[%clk 0:00:56]}  Rh2 {[%clk 0:01:57]} 33. Rd1 {[%clk 0:00:52]}  Rh1+ {[%clk 0:01:41]} 0-1


[Site "https://www.chess.com"]

[Event "Titled Tuesday Blitz December 27 Late 2022"]
[White "Liu, Kelsey"]
[Black "Aung Thant Zin"]
[WhiteFideId "30944481"]
[BlackFideId "13000063"]
[WhiteElo "2065"]
[BlackElo "2268"]
[Result "1-0"]
[Round "04"]
[TimeControl "180+2"]
[Date "2022.12.27"]
[WhiteClock "0:00:18"]
[BlackClock "0:00:07"]

1. e4 {[%clk 0:02:55]}  c5 {[%clk 0:02:59]} 2. Nf3 {[%clk 0:02:54]}  Nc6 {[%clk 0:02:59]} 3. Bb5 {[%clk 0:02:53]}  e6 {[%clk 0:02:58]} 4. Bxc6 {[%clk 0:02:37]}  bxc6 {[%clk 0:02:58]} 5. d3 {[%clk 0:02:35]}  Ne7 {[%clk 0:02:58]} 6. Qe2 {[%clk 0:02:35]}  Ng6 {[%clk 0:02:56]} 7. h4 {[%clk 0:02:35]}  h6 {[%clk 0:02:48]} 8. h5 {[%clk 0:02:24]}  Ne7 {[%clk 0:02:47]} 9. Na3 {[%clk 0:02:14]}  d6 {[%clk 0:02:44]} 10. Bf4 {[%clk 0:02:12]}  e5 {[%clk 0:02:43]} 11. Bg3 {[%clk 0:02:12]}  Bg4 {[%clk 0:02:41]} 12. Nc4 {[%clk 0:02:10]}  Nc8 {[%clk 0:02:28]} 13. Qe3 {[%clk 0:01:41]}  Be7 {[%clk 0:02:20]} 14. Nh4 {[%clk 0:01:38]}  Be6 {[%clk 0:02:02]} 15. Nf5 {[%clk 0:01:36]}  Bf6 {[%clk 0:01:48]} 16. c3 {[%clk 0:01:11]}  Bxf5 {[%clk 0:01:27]} 17. exf5 {[%clk 0:01:11]}  Ne7 {[%clk 0:01:27]} 18. Qf3 {[%clk 0:01:09]}  Qd7 {[%clk 0:01:26]} 19. Kd2 {[%clk 0:01:05]}  O-O {[%clk 0:00:43]} 20. Ne3 {[%clk 0:00:50]}  d5 {[%clk 0:00:38]} 21. Ng4 {[%clk 0:00:40]}  Bg5+ {[%clk 0:00:29]} 22. Kc2 {[%clk 0:00:40]}  Nxf5 {[%clk 0:00:18]} 23. Nxe5 {[%clk 0:00:40]}  Qe6 {[%clk 0:00:18]} 24. Rae1 {[%clk 0:00:33]}  Nxg3 {[%clk 0:00:17]} 25. Qxg3 {[%clk 0:00:32]}  Rfe8 {[%clk 0:00:13]} 26. f4 {[%clk 0:00:32]}  Bf6 {[%clk 0:00:11]} 27. Ng4 {[%clk 0:00:32]}  Qd6 {[%clk 0:00:11]} 28. Nxh6+ {[%clk 0:00:29]}  Kf8 {[%clk 0:00:11]} 29. Nf5 {[%clk 0:00:29]}  Qd7 {[%clk 0:00:10]} 30. h6 {[%clk 0:00:20]}  Qxf5 {[%clk 0:00:07]} 31. h7 {[%clk 0:00:18]} 1-0


[Site "https://www.chess.com"]

[Event "Titled Tuesday Blitz December 27 Late 2022"]
[White "Martinez Ramirez, Lennis"]
[Black "Gatterer, Florian"]
[WhiteFideId "3509079"]
[BlackFideId "811688"]
[WhiteElo "2426"]
[BlackElo "2170"]
[Result "1-0"]
[Round "04"]
[TimeControl "180+2"]
[Date "2022.12.27"]
[WhiteClock "0:00:41"]
[BlackClock "0:00:07"]

1. c4 {[%clk 0:03:00]}  c6 {[%clk 0:02:58]} 2. d4 {[%clk 0:02:51]}  d5 {[%clk 0:02:59]} 3. Nf3 {[%clk 0:02:50]}  Nf6 {[%clk 0:02:59]} 4. e3 {[%clk 0:02:49]}  Bg4 {[%clk 0:02:57]} 5. Qb3 {[%clk 0:02:49]}  Qc7 {[%clk 0:02:57]} 6. Ne5 {[%clk 0:02:49]}  Be6 {[%clk 0:02:54]} 7. Nc3 {[%clk 0:02:49]}  dxc4 {[%clk 0:02:52]} 8. Bxc4 {[%clk 0:02:48]}  Bxc4 {[%clk 0:02:52]} 9. Qxc4 {[%clk 0:02:48]}  e6 {[%clk 0:02:52]} 10. O-O {[%clk 0:02:47]}  Nbd7 {[%clk 0:02:48]} 11. f4 {[%clk 0:02:48]}  Be7 {[%clk 0:02:46]} 12. Bd2 {[%clk 0:02:46]}  a6 {[%clk 0:02:45]} 13. Rac1 {[%clk 0:02:45]}  O-O {[%clk 0:02:39]} 14. b4 {[%clk 0:02:38]}  Nxe5 {[%clk 0:02:24]} 15. fxe5 {[%clk 0:02:37]}  Ng4 {[%clk 0:02:24]} 16. h3 {[%clk 0:02:36]}  Nh6 {[%clk 0:02:23]} 17. Ne4 {[%clk 0:02:32]}  Qd7 {[%clk 0:02:16]} 18. Rf4 {[%clk 0:02:07]}  Qd5 {[%clk 0:02:14]} 19. Qc2 {[%clk 0:02:05]}  Nf5 {[%clk 0:01:54]} 20. g4 {[%clk 0:02:04]}  Nh4 {[%clk 0:01:53]} 21. Rcf1 {[%clk 0:02:03]}  Ng6 {[%clk 0:01:52]} 22. R4f3 {[%clk 0:02:00]}  Nh4 {[%clk 0:01:37]} 23. R3f2 {[%clk 0:01:59]}  Ng6 {[%clk 0:01:37]} 24. Be1 {[%clk 0:01:59]}  b6 {[%clk 0:01:29]} 25. g5 {[%clk 0:01:58]}  c5 {[%clk 0:01:27]} 26. bxc5 {[%clk 0:01:53]}  bxc5 {[%clk 0:01:26]} 27. Bc3 {[%clk 0:01:39]}  cxd4 {[%clk 0:01:23]} 28. Bxd4 {[%clk 0:01:31]}  Rac8 {[%clk 0:01:17]} 29. Nc3 {[%clk 0:01:30]}  Qc4 {[%clk 0:01:10]} 30. Qe4 {[%clk 0:01:29]}  Bb4 {[%clk 0:01:04]} 31. Ne2 {[%clk 0:01:27]}  Bc5 {[%clk 0:01:04]} 32. h4 {[%clk 0:01:22]}  Bxd4 {[%clk 0:01:02]} 33. exd4 {[%clk 0:01:23]}  Qc6 {[%clk 0:00:55]} 34. Qg4 {[%clk 0:01:23]}  Ne7 {[%clk 0:00:48]} 35. Ng3 {[%clk 0:01:21]}  Nd5 {[%clk 0:00:45]} 36. h5 {[%clk 0:01:20]}  Ne3 {[%clk 0:00:44]} 37. Qf4 {[%clk 0:01:19]}  Nxf1 {[%clk 0:00:42]} 38. Rxf1 {[%clk 0:01:14]}  Qc2 {[%clk 0:00:35]} 39. Ne4 {[%clk 0:01:05]}  Rc4 {[%clk 0:00:31]} 40. Nd6 {[%clk 0:01:04]}  Rc3 {[%clk 0:00:21]} 41. Nxf7 {[%clk 0:01:02]}  Qf5 {[%clk 0:00:20]} 42. Qxf5 {[%clk 0:01:01]}  exf5 {[%clk 0:00:21]} 43. e6 {[%clk 0:01:02]}  Re3 {[%clk 0:00:19]} 44. d5 {[%clk 0:01:02]}  Rxf7 {[%clk 0:00:19]} 45. exf7+ {[%clk 0:01:01]}  Kxf7 {[%clk 0:00:19]} 46. Rxf5+ {[%clk 0:01:02]}  Ke7 {[%clk 0:00:19]} 47. Kf2 {[%clk 0:00:49]}  Ra3 {[%clk 0:00:18]} 48. Re5+ {[%clk 0:00:50]}  Kd7 {[%clk 0:00:17]} 49. Rf5 {[%clk 0:00:48]}  Ke7 {[%clk 0:00:17]} 50. d6+ {[%clk 0:00:47]}  Kxd6 {[%clk 0:00:15]} 51. Rf7 {[%clk 0:00:47]}  Rxa2+ {[%clk 0:00:15]} 52. Ke3 {[%clk 0:00:44]}  Ra3+ {[%clk 0:00:15]} 53. Ke2 {[%clk 0:00:44]}  h6 {[%clk 0:00:13]} 54. Rxg7 {[%clk 0:00:40]}  hxg5 {[%clk 0:00:11]} 55. h6 {[%clk 0:00:40]}  Rh3 {[%clk 0:00:11]} 56. h7 {[%clk 0:00:41]}  a5 {[%clk 0:00:10]} 57. Kf2 {[%clk 0:00:41]}  a4 {[%clk 0:00:10]} 58. Kg2 {[%clk 0:00:41]}  Rh4 {[%clk 0:00:08]} 59. Kg3 {[%clk 0:00:39]}  a3 {[%clk 0:00:08]} 60. Rxg5 {[%clk 0:00:40]}  Rxh7 {[%clk 0:00:08]} 61. Ra5 {[%clk 0:00:40]}  Re7 {[%clk 0:00:07]} 62. Rxa3 {[%clk 0:00:41]}  Re5 {[%clk 0:00:08]} 63. Rd3+ {[%clk 0:00:41]}  Rd5 {[%clk 0:00:08]} 64. Rf3 {[%clk 0:00:42]}  Rf5 {[%clk 0:00:08]} 65. Rxf5 {[%clk 0:00:42]}  Ke6 {[%clk 0:00:08]} 66. Kf4 {[%clk 0:00:41]}  Kd6 {[%clk 0:00:07]} 67. Re5 {[%clk 0:00:41]} 1-0


[Site "https://www.chess.com"]

[Event "Titled Tuesday Blitz December 27 Late 2022"]
[White "Martinez Reyes, Pedro Ramon"]
[Black "Torres Dominguez, David"]
[WhiteFideId "3901807"]
[BlackFideId "2220857"]
[WhiteElo "2376"]
[BlackElo "1994"]
[Result "1/2-1/2"]
[Round "04"]
[TimeControl "180+2"]
[Date "2022.12.27"]
[WhiteClock "0:00:45"]
[BlackClock "0:00:03"]

1. d4 {[%clk 0:03:00]}  e5 {[%clk 0:02:56]} 2. dxe5 {[%clk 0:02:59]}  d6 {[%clk 0:02:57]} 3. g3 {[%clk 0:02:56]}  Nc6 {[%clk 0:02:55]} 4. Bg2 {[%clk 0:02:53]}  dxe5 {[%clk 0:02:51]} 5. Bxc6+ {[%clk 0:02:51]}  bxc6 {[%clk 0:02:50]} 6. Qxd8+ {[%clk 0:02:52]}  Kxd8 {[%clk 0:02:51]} 7. Nc3 {[%clk 0:02:52]}  Bb4 {[%clk 0:02:40]} 8. Bd2 {[%clk 0:02:50]}  f6 {[%clk 0:02:32]} 9. Ne4 {[%clk 0:02:47]}  Bxd2+ {[%clk 0:02:23]} 10. Nxd2 {[%clk 0:02:48]}  Nh6 {[%clk 0:02:17]} 11. O-O-O {[%clk 0:02:40]}  Ke7 {[%clk 0:02:15]} 12. Ngf3 {[%clk 0:02:34]}  Ng4 {[%clk 0:02:11]} 13. Rhf1 {[%clk 0:02:32]}  a5 {[%clk 0:02:10]} 14. a4 {[%clk 0:02:21]}  Be6 {[%clk 0:02:09]} 15. b3 {[%clk 0:02:20]}  c5 {[%clk 0:02:02]} 16. c4 {[%clk 0:02:14]}  Rab8 {[%clk 0:01:55]} 17. Kc2 {[%clk 0:02:13]}  Nh6 {[%clk 0:01:43]} 18. Kc3 {[%clk 0:02:09]}  Rb6 {[%clk 0:01:22]} 19. Ne4 {[%clk 0:02:05]}  Rc6 {[%clk 0:01:15]} 20. Ne1 {[%clk 0:01:59]}  Bf5 {[%clk 0:01:11]} 21. Nd2 {[%clk 0:01:58]}  Bg6 {[%clk 0:01:07]} 22. f3 {[%clk 0:01:51]}  Nf5 {[%clk 0:01:07]} 23. Ng2 {[%clk 0:01:43]}  Rd8 {[%clk 0:01:06]} 24. Ne4 {[%clk 0:01:36]}  Nd4 {[%clk 0:01:01]} 25. e3 {[%clk 0:01:31]}  Nxf3 {[%clk 0:00:55]} 26. Rxd8 {[%clk 0:01:17]}  Kxd8 {[%clk 0:00:55]} 27. Nxc5 {[%clk 0:01:00]}  Rxc5 {[%clk 0:00:49]} 28. Rxf3 {[%clk 0:00:58]}  Be4 {[%clk 0:00:42]} 29. Rf2 {[%clk 0:00:58]}  Rc6 {[%clk 0:00:39]} 30. Rd2+ {[%clk 0:00:44]}  Rd6 {[%clk 0:00:33]} 31. Rxd6+ {[%clk 0:00:44]}  cxd6 {[%clk 0:00:33]} 32. Ne1 {[%clk 0:00:45]}  Kc7 {[%clk 0:00:28]} 33. Nd3 {[%clk 0:00:46]}  Bxd3 {[%clk 0:00:21]} 34. Kxd3 {[%clk 0:00:47]}  f5 {[%clk 0:00:21]} 35. Kc3 {[%clk 0:00:43]}  g5 {[%clk 0:00:15]} 36. b4 {[%clk 0:00:43]}  axb4+ {[%clk 0:00:14]} 37. Kxb4 {[%clk 0:00:44]}  f4 {[%clk 0:00:13]} 38. exf4 {[%clk 0:00:39]}  exf4 {[%clk 0:00:13]} 39. gxf4 {[%clk 0:00:39]}  gxf4 {[%clk 0:00:13]} 40. Kc3 {[%clk 0:00:39]}  Kb6 {[%clk 0:00:10]} 41. Kd4 {[%clk 0:00:38]}  Ka5 {[%clk 0:00:09]} 42. Ke4 {[%clk 0:00:38]}  Kxa4 {[%clk 0:00:09]} 43. Kxf4 {[%clk 0:00:38]}  Kb4 {[%clk 0:00:09]} 44. h4 {[%clk 0:00:39]}  Kxc4 {[%clk 0:00:09]} 45. h5 {[%clk 0:00:39]}  d5 {[%clk 0:00:09]} 46. Kg5 {[%clk 0:00:40]}  d4 {[%clk 0:00:10]} 47. Kh6 {[%clk 0:00:41]}  d3 {[%clk 0:00:10]} 48. Kxh7 {[%clk 0:00:42]}  d2 {[%clk 0:00:11]} 49. h6 {[%clk 0:00:43]}  d1=Q {[%clk 0:00:11]} 50. Kh8 {[%clk 0:00:44]}  Qd8+ {[%clk 0:00:10]} 51. Kg7 {[%clk 0:00:44]}  Qe7+ {[%clk 0:00:11]} 52. Kg8 {[%clk 0:00:45]}  Qg5+ {[%clk 0:00:10]} 53. Kh7 {[%clk 0:00:45]}  Kd5 {[%clk 0:00:09]} 54. Kh8 {[%clk 0:00:44]}  Qd8+ {[%clk 0:00:09]} 55. Kg7 {[%clk 0:00:44]}  Qe7+ {[%clk 0:00:09]} 56. Kg6 {[%clk 0:00:44]}  Qe8+ {[%clk 0:00:08]} 57. Kg7 {[%clk 0:00:45]}  Qe7+ {[%clk 0:00:09]} 58. Kg6 {[%clk 0:00:44]}  Qe6+ {[%clk 0:00:07]} 59. Kg7 {[%clk 0:00:45]}  Qg4+ {[%clk 0:00:07]} 60. Kh8 {[%clk 0:00:43]}  Qd4+ {[%clk 0:00:06]} 61. Kg8 {[%clk 0:00:44]}  Qg4+ {[%clk 0:00:05]} 62. Kh8 {[%clk 0:00:44]}  Qg6 {[%clk 0:00:03]} 63. h7 {[%clk 0:00:44]}  Qe8+ {[%clk 0:00:03]} 64. Kg7 {[%clk 0:00:44]}  Qe7+ {[%clk 0:00:03]} 65. Kg8 {[%clk 0:00:44]}  Qxh7+ {[%clk 0:00:03]} 66. Kxh7 {[%clk 0:00:45]} 1/2-1/2


[Site "https://www.chess.com"]

[Event "Titled Tuesday Blitz December 27 Late 2022"]
[White "Martinez, Shawn"]
[Black "Bettalli, Francesco"]
[WhiteFideId "2039770"]
[BlackFideId "2816453"]
[WhiteElo "1881"]
[BlackElo "2252"]
[Result "0-1"]
[Round "04"]
[TimeControl "180+2"]
[Date "2022.12.27"]
[WhiteClock "0:00:06"]
[BlackClock "0:00:53"]

1. e4 {[%clk 0:03:00]}  g6 {[%clk 0:02:59]} 2. d4 {[%clk 0:03:00]}  Bg7 {[%clk 0:02:58]} 3. Nc3 {[%clk 0:03:00]}  c6 {[%clk 0:02:58]} 4. Bg5 {[%clk 0:03:00]}  d5 {[%clk 0:02:58]} 5. e5 {[%clk 0:02:56]}  h5 {[%clk 0:02:48]} 6. Qd2 {[%clk 0:02:55]}  Nh6 {[%clk 0:02:47]} 7. O-O-O {[%clk 0:02:51]}  b5 {[%clk 0:02:46]} 8. Kb1 {[%clk 0:02:47]}  a5 {[%clk 0:02:46]} 9. Nf3 {[%clk 0:02:38]}  Bg4 {[%clk 0:02:44]} 10. Be2 {[%clk 0:02:34]}  Nd7 {[%clk 0:02:42]} 11. h3 {[%clk 0:02:33]}  Bxf3 {[%clk 0:02:42]} 12. Bxf3 {[%clk 0:02:32]}  Nb6 {[%clk 0:02:42]} 13. b3 {[%clk 0:02:28]}  b4 {[%clk 0:02:42]} 14. Ne2 {[%clk 0:02:28]}  Qc7 {[%clk 0:02:36]} 15. e6 {[%clk 0:02:26]}  fxe6 {[%clk 0:02:23]} 16. Nf4 {[%clk 0:02:25]}  Kf7 {[%clk 0:02:18]} 17. Rhe1 {[%clk 0:02:14]}  e5 {[%clk 0:02:17]} 18. dxe5 {[%clk 0:02:12]}  Bxe5 {[%clk 0:02:12]} 19. Qe3 {[%clk 0:02:00]}  Bf6 {[%clk 0:01:57]} 20. Qe6+ {[%clk 0:01:52]}  Kg7 {[%clk 0:01:54]} 21. Bxf6+ {[%clk 0:01:03]}  exf6 {[%clk 0:01:55]} 22. Qe7+ {[%clk 0:01:03]}  Qxe7 {[%clk 0:01:55]} 23. Rxe7+ {[%clk 0:01:04]}  Nf7 {[%clk 0:01:55]} 24. Ne6+ {[%clk 0:00:50]}  Kg8 {[%clk 0:01:54]} 25. Nd4 {[%clk 0:00:50]}  Rc8 {[%clk 0:01:49]} 26. Rde1 {[%clk 0:00:48]}  Ne5 {[%clk 0:01:46]} 27. Rb7 {[%clk 0:00:45]}  Nbd7 {[%clk 0:01:44]} 28. Nxc6 {[%clk 0:00:40]}  Nxc6 {[%clk 0:01:23]} 29. Bxd5+ {[%clk 0:00:38]}  Kf8 {[%clk 0:01:23]} 30. Rxd7 {[%clk 0:00:38]}  Ne5 {[%clk 0:01:24]} 31. Ra7 {[%clk 0:00:35]}  Rd8 {[%clk 0:01:23]} 32. Be6 {[%clk 0:00:33]}  g5 {[%clk 0:01:23]} 33. Rxa5 {[%clk 0:00:28]}  Rd2 {[%clk 0:01:21]} 34. f4 {[%clk 0:00:24]}  gxf4 {[%clk 0:01:21]} 35. Rf1 {[%clk 0:00:24]}  Ke7 {[%clk 0:01:17]} 36. Bf5 {[%clk 0:00:23]}  Rxg2 {[%clk 0:01:04]} 37. Ra7+ {[%clk 0:00:23]}  Kd6 {[%clk 0:01:03]} 38. Rd1+ {[%clk 0:00:22]}  Kc5 {[%clk 0:01:01]} 39. Be4 {[%clk 0:00:17]}  Re2 {[%clk 0:00:58]} 40. Bd3 {[%clk 0:00:10]}  Nxd3 {[%clk 0:00:57]} 41. Rxd3 {[%clk 0:00:11]}  Rg8 {[%clk 0:00:55]} 42. Ra5+ {[%clk 0:00:10]}  Kb6 {[%clk 0:00:55]} 43. Rf5 {[%clk 0:00:11]}  Rg1+ {[%clk 0:00:52]} 44. Kb2 {[%clk 0:00:11]}  Ree1 {[%clk 0:00:53]} 45. c4 {[%clk 0:00:06]}  Re2+ {[%clk 0:00:53]} 0-1


[Site "https://www.chess.com"]